bitfinex/quotes_SOLUSD_20220128
["timestamp","ask_amount","ask_price","bid_price","bid_amount"]
[1643363020571,16.1,89.39,89.25,6.0]
[1643363020778,16.1,89.39,89.251,23.8826]
[1643363020779,49.4086,89.388,89.251,23.8826]
[1643363020969,49.4086,89.388,89.251,29.8826]
[1643363021169,49.4086,89.388,89.252,6.0]
[1643363021371,10.76171864,89.387,89.261,6.0]
[1643363021570,10.76171864,89.387,89.263,6.0]
[1643363021970,6.0,89.377,89.263,6.0]
[1643363022170,111.5,89.369,89.253,43.94084314]
[1643363022373,2.27007647,89.368,89.253,43.94084314]
[1643363022770,111.5,89.357,89.253,43.94084314]
[1643363023172,111.5,89.346,89.253,43.94084314]
[1643363023369,111.5,89.344,89.253,43.94084314]
[1643363023769,2.95669142,89.343,89.253,43.94084314]
[1643363023971,2.95669142,89.343,89.263,6.0]
[1643363024171,2.95669142,89.367,89.263,6.0]
[1643363024372,2.95669142,89.367,89.264,0.25]
[1643363024572,16.1,89.37,89.264,0.25]
[1643363024971,16.1,89.37,89.264,25.0971]
[1643363025172,9.22277355,89.369,89.264,25.0971]
[1643363025371,111.5,89.368,89.264,25.0971]
[1643363025681,114.45669142,89.368,89.264,25.0971]
[1643363025871,114.45669142,89.368,89.264,24.8471]
[1643363026073,2.95669142,89.367,89.264,24.8471]
[1643363026474,6.0,89.357,89.264,24.8471]
[1643363026674,3.80902156,89.355,89.264,24.8471]
[1643363027072,6.0,89.345,89.264,24.8471]
[1643363028679,6.0,89.345,89.263,6.0]
[1643363030078,16.81,89.35,89.263,6.0]
[1643363030279,16.81,89.35,89.264,0.25]
[1643363030579,16.8056,89.37,89.264,0.25]
[1643363031184,16.8056,89.37,89.27,6.0]
[1643363031383,16.8056,89.37,89.271,0.25]
[1643363031581,16.8056,89.37,89.274,6.0]
[1643363031783,0.25,89.369,89.275,0.25]
[1643363032183,6.0,89.36,89.275,40.76640961]
[1643363032584,6.0,89.359,89.275,40.76640961]
[1643363033488,10.27804004,89.369,89.275,40.76640961]
[1643363034488,10.27804004,89.369,89.275,40.51640961]
[1643363034687,0.25,89.369,89.275,40.51640961]
[1643363035286,6.0,89.36,89.275,40.51640961]
[1643363035702,10.45729285,89.359,89.275,40.51640961]
[1643363035902,16.8056,89.37,89.276,0.25]
[1643363036105,6.0,89.36,89.276,23.1556]
[1643363036503,2.95669142,89.369,89.276,22.9056]
[1643363036806,9.46205115,89.349,89.275,40.51640961]
[1643363037004,6.0,89.339,89.275,40.51640961]
[1643363037502,2.95669142,89.338,89.23,16.1]
[1643363037703,27.59419142,89.338,89.22,16.1]
[1643363037904,6.0,89.328,89.22,16.1]
[1643363038103,16.8185,89.3,89.22,16.1]
[1643363038502,6.0,89.29,89.221,45.80560704]
[1643363038905,6.0,89.29,89.222,0.25]
[1643363039107,3.56974396,89.299,89.222,0.25]
[1643363039304,16.8151,89.32,89.222,0.25]
[1643363039505,16.8151,89.32,89.223,19.4371178]
[1643363039705,6.0,89.31,89.223,21.51083372]
[1643363039907,6.0,89.31,89.224,2.32371592]
[1643363040105,6.0,89.31,89.224,45.22293372]
[1643363040306,6.0,89.31,89.225,21.51083372]
[1643363040511,6.0,89.312,89.225,19.4371178]
[1643363040713,6.0,89.312,89.226,0.25]
[1643363040909,6.0,89.31,89.224,23.7121]
[1643363041108,6.0,89.309,89.224,23.7121]
[1643363041310,1.69307638,89.308,89.224,23.7121]
[1643363041509,6.0,89.309,89.225,2.07382625]
[1643363041909,6.0,89.333,89.226,19.6871178]
[1643363042108,6.0,89.337,89.23,16.1]
[1643363042308,16.1,89.35,89.231,111.5]
[1643363042508,11.27642512,89.343,89.231,133.01094405]
[1643363042708,11.27642512,89.343,89.232,9.86007132]
[1643363042908,11.27642512,89.343,89.242,37.2507003]
[1643363043108,11.27642512,89.343,89.25,16.1]
[1643363043408,16.8089,89.35,89.251,0.25]
[1643363043816,0.25,89.346,89.251,0.25]
[1643363044013,6.0,89.337,89.251,0.25]
[1643363044413,12.69175221,89.336,89.251,0.25]
[1643363044618,6.0,89.326,89.251,0.25]
[1643363044818,0.25,89.325,89.251,0.25]
[1643363045619,16.8118,89.34,89.251,0.25]
[1643363045821,0.25,89.339,89.251,0.25]
[1643363046423,11.77713756,89.339,89.251,0.25]
[1643363047018,11.77713756,89.339,89.244,0.25]
[1643363047221,11.77713756,89.339,89.25,16.1]
[1643363047420,11.77713756,89.339,89.251,0.25]
[1643363048420,11.77713756,89.339,89.25,16.1]
[1643363048620,6.0,89.329,89.25,16.1]
[1643363048822,0.25,89.328,89.242,37.2507003]
[1643363049023,6.25,89.328,89.242,37.2507003]
[1643363049622,2.95669142,89.327,89.242,37.2507003]
[1643363049824,0.25,89.326,89.242,37.2507003]
[1643363050023,16.8182,89.3,89.242,37.2507003]
[1643363050225,11.52713756,89.299,89.242,37.2507003]
[1643363050425,6.0,89.29,89.242,37.2507003]
[1643363050625,11.77713756,89.299,89.242,37.2507003]
[1643363051026,0.25,89.299,89.242,37.2507003]
[1643363051226,16.8182,89.3,89.242,37.2507003]
[1643363051629,111.5,89.324,89.242,37.2507003]
[1643363051827,0.25,89.319,89.242,37.2507003]
[1643363052028,6.0,89.31,89.242,37.2507003]
[1643363052227,111.5,89.309,89.242,37.2507003]
[1643363052427,117.75,89.309,89.242,37.2507003]
[1643363053230,1.10945215,89.299,89.242,37.2507003]
[1643363053530,6.0,89.289,89.242,37.2507003]
[1643363053927,16.8194,89.3,89.242,37.2507003]
[1643363054129,0.25,89.288,89.242,37.2507003]
[1643363054327,16.8194,89.3,89.242,37.2507003]
[1643363054527,0.25,89.299,89.242,37.2507003]
[1643363055827,0.25,89.328,89.242,39.32459718]
[1643363056029,6.0,89.319,89.242,37.2507003]
[1643363056428,6.0,89.31,89.242,37.2507003]
[1643363056634,6.0,89.308,89.242,37.2507003]
[1643363058231,0.25,89.307,89.242,37.2507003]
[1643363059033,16.8157,89.32,89.243,0.25]
[1643363059234,4.61905734,89.383,89.243,26.21159688]
[1643363059235,46.7849,89.362,89.243,26.21159688]
[1643363059435,56.0285,89.38,89.252,6.0]
[1643363059436,3.07937156,89.375,89.252,6.0]
[1643363059631,56.0285,89.38,89.252,6.0]
[1643363059632,3.07937156,89.38,89.26,16.1]
[1643363059834,3.07937156,89.392,89.261,24.9694]
[1643363060033,3.07937156,89.388,89.271,6.0]
[1643363060234,3.07937156,89.394,89.28,16.1]
[1643363060433,3.07937156,89.403,89.281,111.5]
[1643363060632,16.8037,89.39,89.291,6.0]
[1643363060834,16.8037,89.39,89.3,16.1]
[1643363061032,48.956,89.407,89.31,6.0]
[1643363061233,3.04131944,89.406,89.311,24.5016]
[1643363061434,3.04131944,89.406,89.311,32.82549688]
[1643363061635,3.04131944,89.406,89.32,6.0]
[1643363061838,3.07937156,89.414,89.32,6.0]
[1643363062041,16.7988,89.42,89.322,117.5]
[1643363062042,3.07937156,89.415,89.322,117.5]
[1643363062235,3.04168685,89.418,89.33,16.1]
[1643363062435,16.7988,89.42,89.332,111.5]
[1643363062636,3.07937156,89.431,89.342,6.0]
[1643363062837,16.7923,89.45,89.35,16.1]
[1643363062838,3.04064799,89.449,89.35,16.1]
[1643363063036,16.7923,89.45,89.36,6.0]
[1643363063336,3.07937156,89.466,89.371,47.39857074]
[1643363063543,1.78936206,89.468,89.371,47.39857074]
[1643363063736,16.7937,89.44,89.371,47.39857074]
[1643363063935,10.21978159,89.438,89.371,47.39857074]
[1643363064137,3.03396326,89.437,89.371,47.39857074]
[1643363064438,10.21978159,89.438,89.371,47.39857074]
[1643363064838,3.07937156,89.45,89.371,47.39857074]
[1643363065136,6.0,89.44,89.371,47.39857074]
[1643363065335,0.25,89.439,89.371,47.39857074]
[1643363065736,6.0,89.44,89.371,47.39857074]
[1643363066134,6.0,89.434,89.371,47.39857074]
[1643363066336,3.07937156,89.468,89.371,47.39857074]
[1643363066536,16.7869,89.47,89.371,47.39857074]
[1643363066738,16.7869,89.47,89.372,0.25]
[1643363066941,16.7869,89.47,89.372,111.75]
[1643363067138,16.7869,89.47,89.372,160.5252]
[1643363068141,11.02867296,89.469,89.372,48.7752]
[1643363068341,16.7905,89.45,89.371,47.39857074]
[1643363068543,6.0,89.44,89.371,47.39857074]
[1643363068940,6.0,89.439,89.371,47.39857074]
[1643363069467,0.25,89.438,89.371,47.39857074]
[1643363069639,6.0,89.44,89.371,47.39857074]
[1643363069842,0.25,89.439,89.372,0.25]
[1643363070041,16.7905,89.45,89.371,47.39857074]
[1643363070241,1129.78405816,90.381,89.371,47.39857074]
[1643363070242,16.7866,89.48,89.371,47.39857074]
[1643363070440,16.7866,89.48,89.372,47.7275]
[1643363070642,6.0,89.47,89.372,47.7275]
[1643363070840,16.7866,89.48,89.373,111.5]
[1643363071042,28.56189394,89.48,89.373,111.5]
[1643363071241,28.56189394,89.48,89.374,0.25]
[1643363071444,0.25,89.479,89.374,0.25]
[1643363072644,0.25,89.479,89.373,111.5]
[1643363072844,16.7866,89.48,89.373,111.5]
[1643363073044,6.0,89.47,89.373,111.5]
[1643363074146,6.0,89.47,89.374,0.25]
[1643363074648,22.8203,89.487,89.383,6.0]
[1643363074649,6.0,89.477,89.383,6.0]
[1643363074848,0.25,89.476,89.39,16.1]
[1643363076048,9.42478195,89.479,89.39,16.1]
[1643363076248,0.25,89.479,89.39,16.1]
[1643363076649,0.25,89.479,89.391,0.25]
[1643363077255,0.25,89.479,89.39,16.1]
[1643363078257,0.25,89.479,89.391,0.25]
[1643363078857,0.25,89.479,89.39,16.1]
[1643363079456,16.7874,89.47,89.39,16.1]
[1643363079656,0.66448565,89.469,89.39,16.1]
[1643363079860,0.25,89.469,89.39,16.1]
[1643363081457,16.7874,89.47,89.39,16.1]
[1643363082861,0.25,89.469,89.39,16.1]
[1643363084779,111.75,89.469,89.39,16.1]
[1643363085679,111.75,89.469,89.385,39.80252515]
[1643363086082,16.7893,89.46,89.385,39.80252515]
[1643363086281,114.82442157,89.459,89.385,39.80252515]
[1643363087082,3.32442157,89.459,89.385,39.80252515]
[1643363088687,114.82442157,89.459,89.385,39.80252515]
[1643363088886,3.32442157,89.459,89.385,39.80252515]
[1643363089487,3.04223443,89.458,89.385,39.80252515]
[1643363089887,0.25,89.457,89.385,39.80252515]
[1643363090091,3.04223443,89.456,89.385,39.80252515]
[1643363090487,6.12160599,89.458,89.385,39.80252515]
[1643363091291,3.04223443,89.458,89.385,39.80252515]
[1643363091588,3.07937156,89.458,89.385,39.80252515]
[1643363091789,6.12160599,89.459,89.385,39.80252515]
[1643363092389,12.33363424,89.457,89.385,39.80252515]
[1643363092591,3.07937156,89.455,89.385,39.80252515]
[1643363093389,0.25,89.454,89.385,39.80252515]
[1643363093791,3.04223443,89.453,89.385,39.80252515]
[1643363094193,0.25,89.452,89.385,39.80252515]
[1643363094595,3.04223443,89.451,89.385,39.80252515]
[1643363094795,0.25,89.45,89.385,39.80252515]
[1643363095197,3.04223443,89.449,89.385,39.80252515]
[1643363095394,0.25,89.448,89.385,39.80252515]
[1643363095596,3.04223443,89.447,89.385,39.80252515]
[1643363095795,3.04223443,89.447,89.386,0.25]
[1643363095995,6.12160599,89.459,89.386,0.25]
[1643363096195,3.04223443,89.459,89.386,23.7793]
[1643363096996,3.07937156,89.461,89.386,23.7793]
[1643363097196,3.04223443,89.458,89.386,23.7793]
[1643363097398,0.25,89.457,89.386,23.5293]
[1643363097597,3.04223443,89.456,89.386,23.5293]
[1643363097997,3.04223443,89.456,89.387,0.25]
[1643363098296,3.04223443,89.455,89.387,0.25]
[1643363098497,3.07937156,89.46,89.387,0.25]
[1643363098896,3.04223443,89.474,89.387,0.25]
[1643363098897,3.07937156,89.462,89.387,0.25]
[1643363099396,3.04223443,89.476,89.387,0.25]
[1643363099397,3.07937156,89.461,89.387,0.25]
[1643363100096,3.07937156,89.459,89.387,0.25]
[1643363100298,3.07937156,89.457,89.386,23.5293]
[1643363100498,3.07937156,89.456,89.386,23.5293]
[1643363100901,3.04223443,89.455,89.386,23.5293]
[1643363101299,3.07937156,89.457,89.386,23.5293]
[1643363101498,3.04223443,89.454,89.386,23.5293]
[1643363101697,3.07937156,89.457,89.387,0.25]
[1643363101898,3.07937156,89.46,89.387,0.25]
[1643363103101,3.04223443,89.469,89.387,0.25]
[1643363103102,3.07937156,89.459,89.387,0.25]
[1643363103298,6.12160599,89.459,89.386,23.5293]
[1643363103499,10.62313177,89.458,89.386,23.5293]
[1643363103798,3.07937156,89.445,89.386,23.5293]
[1643363104202,2.90866334,89.444,89.385,39.80252515]
[1643363104398,3.32937156,89.444,89.385,39.80252515]
[1643363104600,6.37160599,89.444,89.385,39.80252515]
[1643363104899,3.04223443,89.443,89.385,39.80252515]
[1643363105398,16.7925,89.44,89.385,39.80252515]
[1643363105601,6.0,89.43,89.385,39.80252515]
[1643363106000,0.25,89.429,89.385,39.80252515]
[1643363106801,0.25,89.429,89.366,23.2127]
[1643363107001,6.0,89.425,89.366,23.2127]
[1643363107403,6.0,89.418,89.331,24.9687]
[1643363107603,6.0,89.418,89.281,3.09629108]
[1643363107604,3.05077173,89.417,89.281,3.09629108]
[1643363107903,3.07937156,89.411,89.311,35.61481849]
[1643363108109,3.07937156,89.412,89.311,35.61481849]
[1643363108304,0.25,89.41,89.311,35.61481849]
[1643363108504,6.0,89.402,89.311,35.61481849]
[1643363108707,6.0,89.402,89.312,135.3946]
[1643363108904,6.0,89.399,89.312,135.3946]
[1643363109104,0.25,89.401,89.312,135.3946]
[1643363109505,6.0,89.4,89.312,135.3946]
[1643363110006,0.25,89.399,89.312,135.3946]
[1643363110209,6.0,89.4,89.313,0.25]
[1643363110406,6.0,89.399,89.313,2.31858228]
[1643363110610,6.0,89.399,89.313,0.25]
[1643363111533,16.7986,89.41,89.313,0.25]
[1643363111534,6.0,89.4,89.313,0.25]
[1643363111734,12.32191855,89.399,89.313,0.25]
[1643363112132,6.0,89.389,89.313,0.25]
[1643363112332,0.25,89.388,89.313,0.25]
[1643363113032,6.0,89.39,89.313,0.25]
[1643363113236,0.25,89.388,89.313,0.25]
[1643363114335,0.25,89.389,89.313,0.25]
[1643363114735,6.0,89.39,89.313,0.25]
[1643363116834,6.0,89.406,89.313,0.25]
[1643363117636,6.0,89.406,89.314,2.06858228]
[1643363117836,6.0,89.406,89.315,0.25]
[1643363118035,6.0,89.406,89.313,0.25]
[1643363119437,7.51767835,89.406,89.313,0.25]
[1643363119837,1.51767835,89.406,89.313,0.25]
[1643363120038,1.51767835,89.407,89.313,0.25]
[1643363120842,1.51767835,89.407,89.314,17.75978046]
[1643363121043,1.51767835,89.414,89.324,6.0]
[1643363121241,1.51767835,89.415,89.33,16.1]
[1643363121440,1.51767835,89.419,89.331,46.3519]
[1643363121645,1.51767835,89.417,89.341,117.5]
[1643363121840,1.51767835,89.42,89.35,16.1]
[1643363122041,3.07937156,89.449,89.36,6.0]
[1643363122242,21.40775734,89.47,89.37,16.1]
[1643363122440,3.03815273,89.469,89.371,22.5862]
[1643363122640,3.03815273,89.469,89.371,22.8362]
[1643363122842,3.03815273,89.469,89.372,36.33719746]
[1643363123041,0.25,89.468,89.372,38.40577974]
[1643363123243,0.25,89.468,89.373,0.25]
[1643363123644,0.25,89.469,89.373,0.25]
[1643363123841,3.03761051,89.468,89.373,0.25]
[1643363124241,0.25,89.467,89.373,0.25]
[1643363124442,0.25,89.467,89.373,111.75]
[1643363125046,0.25,89.467,89.373,0.25]
[1643363125345,0.25,89.469,89.373,0.25]
[1643363125948,0.25,89.469,89.372,36.33719746]
[1643363126146,16.7893,89.46,89.372,36.33719746]
[1643363126346,24.6357,89.459,89.372,36.33719746]
[1643363126546,27.67302581,89.459,89.372,36.33719746]
[1643363126745,24.6357,89.459,89.372,36.33719746]
[1643363127548,24.6357,89.459,89.373,24.5628]
[1643363127746,24.6357,89.459,89.374,111.5]
[1643363127946,3.03788968,89.458,89.374,111.5]
[1643363128147,24.3857,89.459,89.375,0.25]
[1643363129351,0.25,89.458,89.375,0.25]
[1643363129550,16.7914,89.45,89.372,36.33719746]
[1643363129951,3.28875761,89.449,89.372,36.33719746]
[1643363130151,0.25,89.449,89.372,36.33719746]
[1643363131653,0.25,89.449,89.373,23.0706]
[1643363131861,3.07937156,89.463,89.373,23.0706]
[1643363132060,3.04083579,89.468,89.374,23.2977]
[1643363132257,0.25,89.462,89.375,0.25]
[1643363132457,6.0,89.458,89.375,0.25]
[1643363132960,3.07937156,89.475,89.38,16.1]
[1643363133160,3.07937156,89.483,89.38,16.1]
[1643363133358,3.07937156,89.486,89.381,2.32002966]
[1643363133561,6.0,89.476,89.39,6.0]
[1643363133759,3.07937156,89.486,89.392,35.74515943]
[1643363133959,3.04078947,89.485,89.392,35.74515943]
[1643363134260,3.04078947,89.489,89.393,111.75]
[1643363134459,6.12016103,89.489,89.403,111.5]
[1643363134662,3.04078947,89.496,89.404,48.1709]
[1643363134863,3.04078947,89.496,89.41,16.1]
[1643363135061,3.04078947,89.496,89.42,6.0]
[1643363135261,3.07937156,89.509,89.43,16.1]
[1643363135563,3.07937156,89.516,89.432,46.58138152]
[1643363135761,3.07937156,89.516,89.433,24.8964]
[1643363136065,3.07937156,89.524,89.433,26.96642966]
[1643363136561,3.07937156,89.535,89.443,6.0]
[1643363136760,3.07937156,89.541,89.45,16.1]
[1643363136981,16.768,89.57,89.444,111.5]
[1643363136982,3.07937156,89.549,89.46,16.1]
[1643363137184,16.768,89.57,89.47,16.1]
[1643363137185,3.07937156,89.55,89.47,16.1]
[1643363137382,3.07937156,89.554,89.471,159.0404]
[1643363137582,3.07937156,89.557,89.471,159.0404]
[1643363137784,3.07937156,89.562,89.472,2.06994545]
[1643363137983,3.07937156,89.566,89.472,41.07987737]
[1643363138183,3.07937156,89.577,89.473,0.25]
[1643363138383,3.07937156,89.582,89.473,2.31994545]
[1643363138785,22.6077,89.599,89.48,16.7595]
[1643363138984,22.6077,89.599,89.49,16.1]
[1643363139185,24.9775,89.619,89.491,23.2741]
[1643363139486,2.95669142,89.598,89.491,23.5241]
[1643363139784,24.9775,89.619,89.492,113.56994545]
[1643363139984,24.9775,89.619,89.501,6.0]
[1643363140186,24.9775,89.619,89.511,111.5]
[1643363140386,24.9775,89.619,89.513,111.5]
[1643363140789,24.9775,89.619,89.514,0.25]
[1643363141287,6.0,89.609,89.514,0.25]
[1643363141689,8.95669142,89.608,89.514,0.25]
[1643363141887,8.95669142,89.608,89.513,0.25]
[1643363142089,0.25,89.607,89.513,0.25]
[1643363142290,0.25,89.607,89.513,111.75]
[1643363142689,6.0,89.6,89.513,111.75]
[1643363143091,6.0,89.6,89.514,2.06994545]
[1643363143292,6.0,89.615,89.515,0.25]
[1643363143492,6.0,89.615,89.53,16.1]
[1643363143694,6.0,89.636,89.531,159.92402381]
[1643363143892,6.0,89.636,89.531,206.95062381]
[1643363144093,6.0,89.636,89.541,6.0]
[1643363144293,2.95669142,89.667,89.55,16.1]
[1643363144496,4.61905734,89.698,89.552,111.5]
[1643363144694,19.70219142,89.7,89.56,6.0]
[1643363144895,19.70219142,89.7,89.57,16.1]
[1643363145095,19.70219142,89.7,89.571,24.9798]
[1643363145296,16.7455,89.7,89.571,25.2298]
[1643363145495,2.95669142,89.716,89.581,0.32306222]
[1643363145794,16.04745418,89.735,89.581,0.32306222]
[1643363145795,2.95669142,89.734,89.605,0.30700688]
[1643363145995,16.77749546,89.733,89.62,16.1]
[1643363146198,16.77749546,89.733,89.621,39.85352241]
[1643363146396,16.739,89.73,89.621,39.85352241]
[1643363146595,16.739,89.73,89.622,0.25]
[1643363146995,3.89213903,89.719,89.622,0.25]
[1643363147196,6.0,89.72,89.622,0.25]
[1643363147495,2.95669142,89.729,89.622,0.25]
[1643363147697,16.7379,89.73,89.623,2.06994545]
[1643363147897,19.69459142,89.73,89.624,0.25]
[1643363148297,16.7379,89.73,89.624,0.25]
[1643363148498,20.58949297,89.73,89.625,2.06994545]
[1643363148800,16.7379,89.73,89.626,0.25]
[1643363148998,6.0,89.72,89.64,16.1]
[1643363149300,6.0,89.72,89.641,0.25]
[1643363149498,2.95669142,89.729,89.641,0.25]
[1643363149699,2.95669142,89.729,89.641,48.80121628]
[1643363149700,6.0,89.719,89.641,48.80121628]
[1643363150097,6.0,89.716,89.641,48.80121628]
[1643363150399,0.25,89.715,89.641,48.55121628]
[1643363150597,6.0,89.708,89.642,0.25]
[1643363151400,6.0,89.72,89.642,0.25]
[1643363151600,6.0,89.72,89.643,2.06994545]
[1643363151799,6.0,89.72,89.651,6.0]
[1643363152000,6.0,89.726,89.65,16.1]
[1643363152602,6.0,89.752,89.65,16.1]
[1643363152801,0.25,89.751,89.65,18.16994545]
[1643363153404,16.7369,89.74,89.651,0.25]
[1643363153602,6.0,89.73,89.651,0.25]
[1643363154005,0.25,89.729,89.651,0.25]
[1643363154203,0.25,89.729,89.65,16.1]
[1643363154402,16.7395,89.72,89.641,48.55121628]
[1643363154605,6.0,89.71,89.641,48.55121628]
[1643363155005,6.0,89.708,89.641,48.55121628]
[1643363155405,0.25,89.707,89.641,48.55121628]
[1643363155808,6.0,89.71,89.641,48.55121628]
[1643363156208,0.25,89.709,89.641,48.55121628]
[1643363156615,6.0,89.71,89.641,48.55121628]
[1643363157811,0.25,89.709,89.641,48.55121628]
[1643363158610,24.6503,89.751,89.641,48.55121628]
[1643363158611,24.6503,89.751,89.642,70.0]
[1643363158812,24.6503,89.751,89.65,16.1]
[1643363159313,24.6503,89.751,89.651,2.31994545]
[1643363159712,24.6503,89.751,89.652,13.23875291]
[1643363159912,24.6503,89.751,89.653,0.25]
[1643363160113,24.6503,89.751,89.653,2.31994545]
[1643363160312,24.6503,89.751,89.654,2.06994545]
[1643363160511,16.7324,89.76,89.654,2.06994545]
[1643363160711,6.0,89.749,89.655,11.41880746]
[1643363160913,0.25,89.748,89.67,16.1]
[1643363161112,0.25,89.748,89.671,48.55121628]
[1643363161411,0.25,89.748,89.671,50.87100709]
[1643363161814,0.25,89.748,89.671,48.80121628]
[1643363162014,0.25,89.749,89.671,48.80121628]
[1643363162216,0.25,89.749,89.671,48.55121628]
[1643363162420,3.20669142,89.749,89.671,48.55121628]
[1643363163340,16.7375,89.73,89.602,48.157]
[1643363163540,16.7375,89.73,89.61,16.1]
[1643363163740,3.20669142,89.729,89.61,16.1]
[1643363164141,2.95669142,89.728,89.61,16.1]
[1643363164343,31.58530943,89.727,89.611,40.08097306]
[1643363164742,2.95669142,89.726,89.612,0.25]
[1643363165139,0.25,89.725,89.612,0.25]
[1643363165340,16.743,89.71,89.612,0.25]
[1643363165540,16.743,89.71,89.621,6.0]
[1643363165739,2.95669142,89.742,89.631,111.5]
[1643363165940,24.3542,89.771,89.632,47.3324]
[1643363166140,24.3542,89.771,89.642,6.0]
[1643363166340,24.3542,89.771,89.65,16.1]
[1643363166542,31.70178653,89.77,89.651,35.68989245]
[1643363166740,31.70178653,89.77,89.651,35.93989245]
[1643363166944,11.70734796,89.749,89.651,35.68989245]
[1643363167541,2.95669142,89.748,89.651,35.68989245]
[1643363167943,0.25,89.747,89.651,35.68989245]
[1643363168341,16.7374,89.74,89.651,35.68989245]
[1643363168543,32.8374,89.74,89.651,35.68989245]
[1643363168742,0.25,89.739,89.651,35.68989245]
[1643363170442,31.49170062,89.719,89.651,35.68989245]
[1643363170843,0.25,89.718,89.651,35.68989245]
[1643363171946,0.25,89.718,89.62,16.1]
[1643363171947,16.7428,89.71,89.62,16.1]
[1643363172143,16.7428,89.71,89.61,16.1]
[1643363172342,111.75,89.709,89.618,6.0]
[1643363172544,111.75,89.709,89.62,6.0]
[1643363172745,47.9878,89.708,89.62,6.0]
[1643363172943,47.9878,89.708,89.621,35.27330908]
[1643363173144,0.25,89.707,89.621,35.27330908]
[1643363173343,11.91743387,89.689,89.621,35.27330908]
[1643363174143,6.0,89.679,89.621,35.27330908]
[1643363175844,4.46904403,89.699,89.622,2.05119659]
[1643363176244,0.25,89.698,89.622,2.05119659]
[1643363176444,0.25,89.698,89.623,0.25]
[1643363176743,0.25,89.698,89.632,6.0]
[1643363177146,0.25,89.698,89.633,0.25]
[1643363177343,0.25,89.699,89.632,6.0]
[1643363177543,40.75098858,89.699,89.635,40.49755643]
[1643363177944,4.46904403,89.697,89.635,40.49755643]
[1643363178345,0.25,89.696,89.635,40.49755643]
[1643363178546,6.0,89.687,89.635,40.49755643]
[1643363178745,6.0,89.687,89.59,13.4]
[1643363178947,0.25,89.686,89.6,6.0]
[1643363179346,0.25,89.686,89.601,0.25]
[1643363179547,0.25,89.686,89.601,2.29504278]
[1643363179848,0.25,89.686,89.602,47.23127679]
[1643363180053,0.25,89.686,89.612,6.0]
[1643363181348,0.25,89.686,89.602,45.18623401]
[1643363181949,2.90814591,89.679,89.602,45.18623401]
[1643363182149,2.90814591,89.679,89.603,0.25]
[1643363183551,2.90814591,89.679,89.602,45.18623401]
[1643363183750,0.25,89.678,89.602,45.18623401]
[1643363184352,16.7499,89.67,89.603,0.25]
[1643363184753,0.25,89.669,89.603,0.25]
[1643363185151,39.8726378,89.659,89.602,45.18623401]
[1643363185353,6.0,89.66,89.603,0.25]
[1643363185553,6.0,89.677,89.603,0.25]
[1643363186254,41.51881767,89.676,89.603,0.25]
[1643363186853,4.46904403,89.699,89.603,0.25]
[1643363187056,4.46904403,89.696,89.603,0.25]
[1643363187559,6.0,89.686,89.603,47.4152]
[1643363187954,34.28763152,89.685,89.603,47.4152]
[1643363188555,34.28763152,89.685,89.613,6.0]
[1643363188855,34.28763152,89.685,89.614,0.25]
[1643363189053,0.25,89.684,89.603,47.1652]
[1643363189254,16.7481,89.68,89.602,45.18623401]
[1643363189655,0.25,89.679,89.602,45.18623401]
[1643363190456,16.7481,89.68,89.602,45.18623401]
[1643363190661,0.25,89.679,89.602,45.18623401]